[Event "Titled Tuesday Blitz May 23 Early 2023"]
[White "Ciuffoletti, Paolo"]
[Black "KorolDimitriy75"]
[WhiteFideId "807630"]
[WhiteElo "2143"]
[BlackElo "2446"]
[Result "1/2-1/2"]
[Round "06"]
[TimeControl "180+2"]
[Date "2023.05.23"]
[WhiteClock "0:00:25"]
[BlackClock "0:00:16"]

1. e4 {[%clk 0:03:00]}  c5 {[%clk 0:03:00]} 2. d4 {[%clk 0:03:00]}  cxd4 {[%clk 0:02:59]} 3. c3 {[%clk 0:03:00]}  d5 {[%clk 0:02:59]} 4. exd5 {[%clk 0:02:59]}  Qxd5 {[%clk 0:03:00]} 5. cxd4 {[%clk 0:03:00]}  Nc6 {[%clk 0:03:01]} 6. Nf3 {[%clk 0:03:00]}  e5 {[%clk 0:03:01]} 7. Nc3 {[%clk 0:02:55]}  Bb4 {[%clk 0:03:01]} 8. Be2 {[%clk 0:02:50]}  exd4 {[%clk 0:02:53]} 9. O-O {[%clk 0:02:47]}  Qd8 {[%clk 0:02:53]} 10. Nb5 {[%clk 0:02:40]}  Nge7 {[%clk 0:02:51]} 11. Bf4 {[%clk 0:02:22]}  Nd5 {[%clk 0:02:47]} 12. Bg5 {[%clk 0:02:00]}  Be7 {[%clk 0:02:26]} 13. Bxe7 {[%clk 0:01:51]}  Ndxe7 {[%clk 0:02:27]} 14. Nbxd4 {[%clk 0:01:40]}  O-O {[%clk 0:02:27]} 15. h3 {[%clk 0:01:37]}  Qb6 {[%clk 0:02:21]} 16. Nxc6 {[%clk 0:01:19]}  Nxc6 {[%clk 0:02:20]} 17. Qc2 {[%clk 0:01:13]}  h6 {[%clk 0:02:18]} 18. Rad1 {[%clk 0:01:07]}  Be6 {[%clk 0:02:17]} 19. a3 {[%clk 0:01:03]}  Rac8 {[%clk 0:02:15]} 20. Qb1 {[%clk 0:00:59]}  Bb3 {[%clk 0:02:00]} 21. Rd3 {[%clk 0:00:52]}  Rfe8 {[%clk 0:01:43]} 22. Rd2 {[%clk 0:00:49]}  Rcd8 {[%clk 0:01:01]} 23. Rxd8 {[%clk 0:00:47]}  Qxd8 {[%clk 0:00:44]} 24. Bd3 {[%clk 0:00:45]}  Nd4 {[%clk 0:00:35]} 25. Nxd4 {[%clk 0:00:40]}  Qxd4 {[%clk 0:00:36]} 26. Bc2 {[%clk 0:00:33]}  Qc4 {[%clk 0:00:22]} 27. Bxb3 {[%clk 0:00:28]}  Qxb3 {[%clk 0:00:23]} 28. Re1 {[%clk 0:00:27]}  Rxe1+ {[%clk 0:00:22]} 29. Qxe1 {[%clk 0:00:27]}  Qxb2 {[%clk 0:00:20]} 30. Qe8+ {[%clk 0:00:26]}  Kh7 {[%clk 0:00:20]} 31. Qxf7 {[%clk 0:00:26]}  Qxa3 {[%clk 0:00:16]} 32. Qf5+ {[%clk 0:00:25]}  Kg8 {[%clk 0:00:16]} 33. Qe6+ {[%clk 0:00:25]}  Kh7 {[%clk 0:00:16]} 34. Qf5+ {[%clk 0:00:24]}  Kg8 {[%clk 0:00:16]} 35. Qe6+ {[%clk 0:00:25]}  Kh7 {[%clk 0:00:16]} 36. Qf5+ {[%clk 0:00:25]} 1/2-1/2


[Site "https://www.chess.com"]

[Event "Titled Tuesday Blitz May 23 Early 2023"]
[White "Toktomushev, Teimur"]
[Black "Necula, Iulian"]
[WhiteFideId "14176726"]
[BlackFideId "1232380"]
[WhiteElo "2116"]
[BlackElo "1790"]
[Result "1-0"]
[Round "06"]
[TimeControl "180+2"]
[Date "2023.05.23"]
[WhiteClock "0:00:05"]
[BlackClock "0:00:22"]

1. d4 {[%clk 0:02:57]}  d6 {[%clk 0:03:00]} 2. e4 {[%clk 0:02:56]}  Nf6 {[%clk 0:03:00]} 3. Nc3 {[%clk 0:02:52]}  Nbd7 {[%clk 0:03:00]} 4. Nf3 {[%clk 0:02:51]}  e5 {[%clk 0:02:59]} 5. Bc4 {[%clk 0:02:51]}  Be7 {[%clk 0:02:59]} 6. Bxf7+ {[%clk 0:01:46]}  Kxf7 {[%clk 0:02:58]} 7. Ng5+ {[%clk 0:01:47]}  Kg8 {[%clk 0:02:56]} 8. Ne6 {[%clk 0:01:46]}  Qe8 {[%clk 0:02:55]} 9. Nxc7 {[%clk 0:01:46]}  Qd8 {[%clk 0:02:08]} 10. Nxa8 {[%clk 0:01:46]}  b5 {[%clk 0:02:08]} 11. Nxb5 {[%clk 0:00:57]}  Bb7 {[%clk 0:01:55]} 12. Nac7 {[%clk 0:00:51]}  a6 {[%clk 0:01:48]} 13. Ne6 {[%clk 0:00:48]}  Qa5+ {[%clk 0:01:42]} 14. Nc3 {[%clk 0:00:48]}  Nxe4 {[%clk 0:01:35]} 15. O-O {[%clk 0:00:34]}  Nxc3 {[%clk 0:01:25]} 16. bxc3 {[%clk 0:00:34]}  Qd5 {[%clk 0:01:20]} 17. Qg4 {[%clk 0:00:33]}  Bf6 {[%clk 0:00:47]} 18. Bh6 {[%clk 0:00:09]}  g6 {[%clk 0:00:45]} 19. Nc7 {[%clk 0:00:04]}  Nf8 {[%clk 0:00:33]} 20. Nxd5 {[%clk 0:00:04]}  Bxd5 {[%clk 0:00:33]} 21. Bxf8 {[%clk 0:00:04]}  Kxf8 {[%clk 0:00:33]} 22. Rab1 {[%clk 0:00:04]}  h5 {[%clk 0:00:29]} 23. Rb8+ {[%clk 0:00:03]}  Kg7 {[%clk 0:00:29]} 24. Qd7+ {[%clk 0:00:03]}  Kh6 {[%clk 0:00:28]} 25. Rxh8+ {[%clk 0:00:04]}  Bxh8 {[%clk 0:00:22]} 26. Qxd6 {[%clk 0:00:05]} 1-0


[Site "https://www.chess.com"]

[Event "Titled Tuesday Blitz May 23 Early 2023"]
[White "Butolo, Alexandru-Mircea"]
[Black "Pinto, Daniel"]
[WhiteFideId "1261649"]
[BlackFideId "3303144"]
[WhiteElo "1850"]
[BlackElo "2145"]
[Result "0-1"]
[Round "06"]
[TimeControl "180+2"]
[Date "2023.05.23"]
[WhiteClock "0:00:07"]
[BlackClock "0:00:15"]

1. e4 {[%clk 0:03:00]}  e5 {[%clk 0:02:57]} 2. Nf3 {[%clk 0:03:00]}  Nc6 {[%clk 0:02:58]} 3. Bb5 {[%clk 0:03:00]}  Nf6 {[%clk 0:02:58]} 4. O-O {[%clk 0:02:58]}  Nxe4 {[%clk 0:02:58]} 5. Re1 {[%clk 0:02:51]}  Nd6 {[%clk 0:02:56]} 6. Bxc6 {[%clk 0:02:47]}  dxc6 {[%clk 0:02:57]} 7. Rxe5+ {[%clk 0:02:44]}  Be7 {[%clk 0:02:55]} 8. d4 {[%clk 0:02:44]}  O-O {[%clk 0:02:55]} 9. h3 {[%clk 0:02:32]}  Bf6 {[%clk 0:02:55]} 10. Re1 {[%clk 0:02:31]}  Bf5 {[%clk 0:02:55]} 11. Bf4 {[%clk 0:02:08]}  Nc4 {[%clk 0:02:47]} 12. b3 {[%clk 0:01:57]}  Nb6 {[%clk 0:02:47]} 13. Be5 {[%clk 0:01:53]}  Bxe5 {[%clk 0:02:43]} 14. Nxe5 {[%clk 0:01:54]}  f6 {[%clk 0:02:26]} 15. Nf3 {[%clk 0:01:53]}  Qd7 {[%clk 0:02:20]} 16. c4 {[%clk 0:01:52]}  Rfe8 {[%clk 0:02:20]} 17. Nc3 {[%clk 0:01:47]}  Rxe1+ {[%clk 0:02:19]} 18. Qxe1 {[%clk 0:01:48]}  Re8 {[%clk 0:02:19]} 19. Qd2 {[%clk 0:01:48]}  Nc8 {[%clk 0:02:09]} 20. Re1 {[%clk 0:01:47]}  Nd6 {[%clk 0:02:10]} 21. d5 {[%clk 0:01:21]}  cxd5 {[%clk 0:02:05]} 22. Qxd5+ {[%clk 0:01:08]}  Be6 {[%clk 0:02:04]} 23. Qd2 {[%clk 0:01:04]}  Nf5 {[%clk 0:01:51]} 24. Qxd7 {[%clk 0:00:59]}  Bxd7 {[%clk 0:01:49]} 25. Rxe8+ {[%clk 0:00:56]}  Bxe8 {[%clk 0:01:50]} 26. Nd5 {[%clk 0:00:56]}  c6 {[%clk 0:01:50]} 27. Nf4 {[%clk 0:00:46]}  g5 {[%clk 0:01:50]} 28. Ne6 {[%clk 0:00:41]}  Kf7 {[%clk 0:01:45]} 29. Nd8+ {[%clk 0:00:41]}  Ke7 {[%clk 0:01:44]} 30. Nxb7 {[%clk 0:00:42]}  h5 {[%clk 0:01:41]} 31. Nc5 {[%clk 0:00:40]}  g4 {[%clk 0:01:37]} 32. hxg4 {[%clk 0:00:40]}  hxg4 {[%clk 0:01:38]} 33. Nd2 {[%clk 0:00:41]}  Nd4 {[%clk 0:01:36]} 34. Nd3 {[%clk 0:00:38]}  Ne6 {[%clk 0:01:28]} 35. g3 {[%clk 0:00:37]}  a5 {[%clk 0:00:55]} 36. Kf1 {[%clk 0:00:29]}  Nd4 {[%clk 0:00:47]} 37. Nf4 {[%clk 0:00:25]}  Bd7 {[%clk 0:00:42]} 38. Ne4 {[%clk 0:00:24]}  Bf5 {[%clk 0:00:40]} 39. Nc5 {[%clk 0:00:23]}  Bb1 {[%clk 0:00:37]} 40. a3 {[%clk 0:00:22]}  Ba2 {[%clk 0:00:36]} 41. Nb7 {[%clk 0:00:21]}  Nxb3 {[%clk 0:00:32]} 42. c5 {[%clk 0:00:20]}  a4 {[%clk 0:00:31]} 43. Nd3 {[%clk 0:00:20]}  Nd4 {[%clk 0:00:28]} 44. Nb4 {[%clk 0:00:20]}  Bc4+ {[%clk 0:00:27]} 45. Kg2 {[%clk 0:00:21]}  Ke6 {[%clk 0:00:20]} 46. Na5 {[%clk 0:00:21]}  Bd5+ {[%clk 0:00:16]} 47. Nxd5 {[%clk 0:00:21]}  Kxd5 {[%clk 0:00:17]} 48. Nb7 {[%clk 0:00:20]}  Ne6 {[%clk 0:00:16]} 49. Nd8 {[%clk 0:00:07]}  Nxd8 {[%clk 0:00:15]} 0-1


[Site "https://www.chess.com"]

[Event "Titled Tuesday Blitz May 23 Early 2023"]
[White "Smiechu"]
[Black "hakanazeri2"]
[WhiteElo "2308"]
[BlackElo "2569"]
[Result "1/2-1/2"]
[Round "06"]
[TimeControl "180+2"]
[Date "2023.05.23"]
[WhiteClock "0:00:04"]
[BlackClock "0:00:04"]

1. e4 {[%clk 0:02:53]}  c5 {[%clk 0:02:48]} 2. Nf3 {[%clk 0:02:53]}  d6 {[%clk 0:02:47]} 3. d4 {[%clk 0:02:53]}  cxd4 {[%clk 0:02:48]} 4. Nxd4 {[%clk 0:02:54]}  Nf6 {[%clk 0:02:47]} 5. Nc3 {[%clk 0:02:55]}  Nc6 {[%clk 0:02:48]} 6. Be3 {[%clk 0:02:54]}  Ng4 {[%clk 0:02:46]} 7. Bb5 {[%clk 0:02:54]}  Nxe3 {[%clk 0:02:43]} 8. fxe3 {[%clk 0:02:55]}  Bd7 {[%clk 0:02:42]} 9. Bxc6 {[%clk 0:02:56]}  bxc6 {[%clk 0:02:40]} 10. O-O {[%clk 0:02:56]}  e6 {[%clk 0:02:26]} 11. e5 {[%clk 0:02:56]}  dxe5 {[%clk 0:02:24]} 12. Qh5 {[%clk 0:02:47]}  Qe7 {[%clk 0:02:13]} 13. Qxe5 {[%clk 0:02:39]}  f6 {[%clk 0:02:07]} 14. Qe4 {[%clk 0:02:33]}  Rc8 {[%clk 0:02:00]} 15. Rad1 {[%clk 0:02:32]}  g6 {[%clk 0:01:56]} 16. Qd3 {[%clk 0:02:21]}  Bg7 {[%clk 0:01:54]} 17. Nb3 {[%clk 0:02:19]}  c5 {[%clk 0:01:52]} 18. Ne4 {[%clk 0:02:17]}  Rd8 {[%clk 0:01:22]} 19. Nbxc5 {[%clk 0:02:13]}  Bc6 {[%clk 0:01:12]} 20. Qxd8+ {[%clk 0:02:10]}  Qxd8 {[%clk 0:01:12]} 21. Rxd8+ {[%clk 0:02:11]}  Kxd8 {[%clk 0:01:12]} 22. Nxe6+ {[%clk 0:02:11]}  Ke7 {[%clk 0:01:13]} 23. N4c5 {[%clk 0:02:06]}  Bh6 {[%clk 0:01:10]} 24. Kf2 {[%clk 0:02:05]}  Rc8 {[%clk 0:01:00]} 25. b4 {[%clk 0:02:04]}  a5 {[%clk 0:00:50]} 26. a3 {[%clk 0:01:46]}  axb4 {[%clk 0:00:35]} 27. axb4 {[%clk 0:01:46]}  Ra8 {[%clk 0:00:36]} 28. Nd4 {[%clk 0:01:45]}  Bd5 {[%clk 0:00:35]} 29. e4 {[%clk 0:01:43]}  Bc4 {[%clk 0:00:33]} 30. Rd1 {[%clk 0:01:41]}  Ra3 {[%clk 0:00:29]} 31. Nc6+ {[%clk 0:01:40]}  Kf8 {[%clk 0:00:27]} 32. Rd8+ {[%clk 0:01:39]}  Kf7 {[%clk 0:00:23]} 33. Rd7+ {[%clk 0:01:37]}  Kf8 {[%clk 0:00:22]} 34. Rxh7 {[%clk 0:01:31]}  Be3+ {[%clk 0:00:22]} 35. Kf3 {[%clk 0:01:20]}  Bxc5+ {[%clk 0:00:21]} 36. Kf4 {[%clk 0:01:19]}  Be3+ {[%clk 0:00:20]} 37. Kg4 {[%clk 0:01:18]}  Be2+ {[%clk 0:00:17]} 38. Kh3 {[%clk 0:01:10]}  f5 {[%clk 0:00:10]} 39. exf5 {[%clk 0:01:04]}  gxf5 {[%clk 0:00:10]} 40. g3 {[%clk 0:00:59]}  Bg5 {[%clk 0:00:11]} 41. Kg2 {[%clk 0:00:54]}  Bb5 {[%clk 0:00:09]} 42. Ne5 {[%clk 0:00:52]}  Re3 {[%clk 0:00:07]} 43. c4 {[%clk 0:00:42]}  Rxe5 {[%clk 0:00:03]} 44. cxb5 {[%clk 0:00:42]}  Rxb5 {[%clk 0:00:04]} 45. Rh5 {[%clk 0:00:41]}  Bf6 {[%clk 0:00:03]} 46. g4 {[%clk 0:00:39]}  Rxb4 {[%clk 0:00:03]} 47. Rxf5 {[%clk 0:00:38]}  Kg7 {[%clk 0:00:04]} 48. h3 {[%clk 0:00:37]}  Kg6 {[%clk 0:00:04]} 49. Ra5 {[%clk 0:00:37]}  Rb3 {[%clk 0:00:04]} 50. Rc5 {[%clk 0:00:36]}  Bh4 {[%clk 0:00:04]} 51. Rh5 {[%clk 0:00:31]}  Rb2+ {[%clk 0:00:03]} 52. Kf3 {[%clk 0:00:29]}  Rf2+ {[%clk 0:00:03]} 53. Ke4 {[%clk 0:00:25]}  Bg3 {[%clk 0:00:03]} 54. Ra5 {[%clk 0:00:22]}  Rh2 {[%clk 0:00:03]} 55. Rh5 {[%clk 0:00:21]}  Rf2 {[%clk 0:00:02]} 56. Ra5 {[%clk 0:00:21]}  Rf4+ {[%clk 0:00:02]} 57. Ke3 {[%clk 0:00:21]}  Rf8 {[%clk 0:00:03]} 58. Rb5 {[%clk 0:00:19]}  Rh8 {[%clk 0:00:02]} 59. Rh5 {[%clk 0:00:19]}  Rf8 {[%clk 0:00:02]} 60. Ra5 {[%clk 0:00:18]}  Bh4 {[%clk 0:00:01]} 61. Ra6+ {[%clk 0:00:16]}  Kg7 {[%clk 0:00:01]} 62. Ra7+ {[%clk 0:00:16]}  Kg6 {[%clk 0:00:02]} 63. Ra6+ {[%clk 0:00:16]}  Bf6 {[%clk 0:00:02]} 64. h4 {[%clk 0:00:14]}  Kg7 {[%clk 0:00:03]} 65. Ra7+ {[%clk 0:00:14]}  Kg6 {[%clk 0:00:02]} 66. Ra6 {[%clk 0:00:13]}  Kh7 {[%clk 0:00:02]} 67. Ra7+ {[%clk 0:00:13]}  Bg7 {[%clk 0:00:03]} 68. h5 {[%clk 0:00:10]}  Rg8 {[%clk 0:00:01]} 69. g5 {[%clk 0:00:10]}  Kh8 {[%clk 0:00:01]} 70. Kf4 {[%clk 0:00:08]}  Bf8 {[%clk 0:00:02]} 71. g6 {[%clk 0:00:08]}  Rg7 {[%clk 0:00:01]} 72. Ra8 {[%clk 0:00:08]}  Rg8 {[%clk 0:00:02]} 73. Kf5 {[%clk 0:00:08]}  Bg7 {[%clk 0:00:02]} 74. Ra7 {[%clk 0:00:07]}  Rf8+ {[%clk 0:00:02]} 75. Kg5 {[%clk 0:00:04]}  Rb8 {[%clk 0:00:03]} 76. Ra5 {[%clk 0:00:03]}  Re8 {[%clk 0:00:02]} 77. h6 {[%clk 0:00:04]}  Re5+ {[%clk 0:00:03]} 78. Rxe5 {[%clk 0:00:02]}  Bxe5 {[%clk 0:00:04]} 79. Kf5 {[%clk 0:00:03]}  Ba1 {[%clk 0:00:04]} 80. Ke6 {[%clk 0:00:03]}  Bg7 {[%clk 0:00:03]} 81. Kf7 {[%clk 0:00:03]}  Bxh6 {[%clk 0:00:03]} 82. g7+ {[%clk 0:00:04]}  Bxg7 {[%clk 0:00:04]} 1/2-1/2


[Site "https://www.chess.com"]

[Event "Titled Tuesday Blitz May 23 Early 2023"]
[White "Jiganchine, Roman"]
[Black "Rios Escobar, Adan"]
[WhiteFideId "2603667"]
[BlackFideId "3403645"]
[WhiteElo "2302"]
[BlackElo "2445"]
[Result "0-1"]
[Round "06"]
[TimeControl "180+2"]
[Date "2023.05.23"]
[WhiteClock "0:00:00"]
[BlackClock "0:00:08"]

1. e4 {[%clk 0:03:00]}  c5 {[%clk 0:02:59]} 2. Nf3 {[%clk 0:03:00]}  d6 {[%clk 0:02:53]} 3. Bb5+ {[%clk 0:02:59]}  Nd7 {[%clk 0:02:53]} 4. a4 {[%clk 0:02:58]}  Nf6 {[%clk 0:02:51]} 5. Nc3 {[%clk 0:02:57]}  g6 {[%clk 0:02:48]} 6. d4 {[%clk 0:02:55]}  cxd4 {[%clk 0:02:45]} 7. Qxd4 {[%clk 0:02:54]}  Bg7 {[%clk 0:02:45]} 8. O-O {[%clk 0:02:51]}  a6 {[%clk 0:02:45]} 9. Be2 {[%clk 0:02:51]}  O-O {[%clk 0:02:41]} 10. a5 {[%clk 0:02:40]}  Nc5 {[%clk 0:02:36]} 11. Qe3 {[%clk 0:02:27]}  Ng4 {[%clk 0:02:18]} 12. Qg5 {[%clk 0:02:20]}  h6 {[%clk 0:02:16]} 13. Qh4 {[%clk 0:01:44]}  g5 {[%clk 0:02:12]} 14. Bxg5 {[%clk 0:01:40]}  hxg5 {[%clk 0:02:09]} 15. Nxg5 {[%clk 0:01:40]}  Nh6 {[%clk 0:02:05]} 16. e5 {[%clk 0:01:28]}  dxe5 {[%clk 0:01:48]} 17. Rfd1 {[%clk 0:01:20]}  Bd7 {[%clk 0:01:42]} 18. Nd5 {[%clk 0:01:08]}  Rc8 {[%clk 0:01:23]} 19. Ra3 {[%clk 0:01:03]}  Rc6 {[%clk 0:01:21]} 20. Rg3 {[%clk 0:00:55]}  Rg6 {[%clk 0:01:09]} 21. Nb6 {[%clk 0:00:53]}  Qc7 {[%clk 0:01:01]} 22. b4 {[%clk 0:00:50]}  Rxg5 {[%clk 0:00:35]} 23. Rxg5 {[%clk 0:00:43]}  Ne6 {[%clk 0:00:30]} 24. Qxh6 {[%clk 0:00:29]}  Nxg5 {[%clk 0:00:26]} 25. Qxg5 {[%clk 0:00:30]}  Bc6 {[%clk 0:00:18]} 26. Rd3 {[%clk 0:00:22]}  Be4 {[%clk 0:00:12]} 27. Rg3 {[%clk 0:00:19]}  Bg6 {[%clk 0:00:13]} 28. Bd3 {[%clk 0:00:18]}  Qc3 {[%clk 0:00:11]} 29. h4 {[%clk 0:00:17]}  Qe1+ {[%clk 0:00:11]} 30. Kh2 {[%clk 0:00:17]}  e4 {[%clk 0:00:12]} 31. h5 {[%clk 0:00:14]}  exd3 {[%clk 0:00:12]} 32. hxg6 {[%clk 0:00:14]}  dxc2 {[%clk 0:00:11]} 33. gxf7+ {[%clk 0:00:10]}  Rxf7 {[%clk 0:00:11]} 34. Nd5 {[%clk 0:00:08]}  c1=Q {[%clk 0:00:08]} 35. Nxe7+ {[%clk 0:00:08]}  Rxe7 {[%clk 0:00:09]} 36. Qd5+ {[%clk 0:00:08]}  Qe6 {[%clk 0:00:08]} 37. Qd8+ {[%clk 0:00:08]}  Re8 {[%clk 0:00:08]} 38. Rxg7+ {[%clk 0:00:07]}  Kxg7 {[%clk 0:00:09]} 39. Qd4+ {[%clk 0:00:08]}  Qe5+ {[%clk 0:00:09]} 40. g3 {[%clk 0:00:00]}  Qxd4 {[%clk 0:00:08]} 0-1


[Site "https://www.chess.com"]

[Event "Titled Tuesday Blitz May 23 Early 2023"]
[White "Nithyalakshmi, Sivanesan"]
[Black "Mazurkiewicz, Michal"]
[WhiteFideId "5706955"]
[BlackFideId "1124943"]
[WhiteElo "1815"]
[BlackElo "2054"]
[Result "0-1"]
[Round "06"]
[TimeControl "180+2"]
[Date "2023.05.23"]
[WhiteClock "0:00:04"]
[BlackClock "0:00:07"]

1. e4 {[%clk 0:02:51]}  d6 {[%clk 0:02:59]} 2. Nc3 {[%clk 0:02:47]}  Nf6 {[%clk 0:02:59]} 3. Bc4 {[%clk 0:02:45]}  c5 {[%clk 0:02:52]} 4. f4 {[%clk 0:02:45]}  e6 {[%clk 0:02:49]} 5. d3 {[%clk 0:02:42]}  d5 {[%clk 0:02:45]} 6. Bb5+ {[%clk 0:02:38]}  Bd7 {[%clk 0:02:45]} 7. e5 {[%clk 0:02:35]}  Bxb5 {[%clk 0:02:40]} 8. exf6 {[%clk 0:02:34]}  Bc6 {[%clk 0:02:37]} 9. fxg7 {[%clk 0:02:31]}  Bxg7 {[%clk 0:02:38]} 10. Nf3 {[%clk 0:02:28]}  Nd7 {[%clk 0:02:37]} 11. O-O {[%clk 0:02:25]}  Qc7 {[%clk 0:02:37]} 12. a4 {[%clk 0:02:21]}  O-O-O {[%clk 0:02:37]} 13. Nb5 {[%clk 0:02:21]}  Qb8 {[%clk 0:02:35]} 14. Ng5 {[%clk 0:02:15]}  Rdf8 {[%clk 0:02:33]} 15. f5 {[%clk 0:02:12]}  e5 {[%clk 0:02:22]} 16. b4 {[%clk 0:01:49]}  cxb4 {[%clk 0:02:18]} 17. Rb1 {[%clk 0:01:22]}  a5 {[%clk 0:02:01]} 18. c3 {[%clk 0:01:19]}  h6 {[%clk 0:01:55]} 19. Nf3 {[%clk 0:01:16]}  Bxb5 {[%clk 0:01:30]} 20. axb5 {[%clk 0:01:16]}  bxc3 {[%clk 0:01:28]} 21. Ba3 {[%clk 0:01:14]}  Re8 {[%clk 0:01:20]} 22. Qb3 {[%clk 0:01:01]}  d4 {[%clk 0:01:05]} 23. Qxf7 {[%clk 0:00:59]}  Bf6 {[%clk 0:01:00]} 24. b6 {[%clk 0:00:57]}  Kd8 {[%clk 0:00:47]} 25. Qd5 {[%clk 0:00:52]}  Be7 {[%clk 0:00:39]} 26. Nxe5 {[%clk 0:00:44]}  Qxe5 {[%clk 0:00:31]} 27. Bxe7+ {[%clk 0:00:34]}  Rxe7 {[%clk 0:00:13]} 28. Qxb7 {[%clk 0:00:33]}  Rf8 {[%clk 0:00:10]} 29. Qa8+ {[%clk 0:00:26]}  Qb8 {[%clk 0:00:08]} 30. Qxa5 {[%clk 0:00:23]}  Ke8 {[%clk 0:00:08]} 31. b7 {[%clk 0:00:14]}  Rf6 {[%clk 0:00:08]} 32. Qa8 {[%clk 0:00:13]}  Kf8 {[%clk 0:00:08]} 33. Ra1 {[%clk 0:00:12]}  Re8 {[%clk 0:00:08]} 34. Qa3+ {[%clk 0:00:11]}  Kf7 {[%clk 0:00:08]} 35. Qb4 {[%clk 0:00:10]}  Qd6 {[%clk 0:00:08]} 36. Qb3+ {[%clk 0:00:08]}  Kg7 {[%clk 0:00:09]} 37. Ra8 {[%clk 0:00:08]}  Rff8 {[%clk 0:00:08]} 38. Ra4 {[%clk 0:00:07]}  Rb8 {[%clk 0:00:08]} 39. Rb4 {[%clk 0:00:07]}  Nc5 {[%clk 0:00:08]} 40. Qc4 {[%clk 0:00:07]}  Rxb7 {[%clk 0:00:07]} 41. Rxb7+ {[%clk 0:00:06]}  Nxb7 {[%clk 0:00:08]} 42. f6+ {[%clk 0:00:06]}  Rxf6 {[%clk 0:00:07]} 43. Qc8 {[%clk 0:00:06]}  Rxf1+ {[%clk 0:00:07]} 44. Kxf1 {[%clk 0:00:07]}  Qf6+ {[%clk 0:00:07]} 45. Ke2 {[%clk 0:00:07]}  Nd6 {[%clk 0:00:08]} 46. Qd7+ {[%clk 0:00:07]}  Nf7 {[%clk 0:00:09]} 47. g3 {[%clk 0:00:06]}  Qe5+ {[%clk 0:00:09]} 48. Kd1 {[%clk 0:00:06]}  Qe3 {[%clk 0:00:09]} 49. Qg4+ {[%clk 0:00:05]}  Ng5 {[%clk 0:00:08]} 50. h4 {[%clk 0:00:04]}  Qd2# {[%clk 0:00:07]} 0-1


[Site "https://www.chess.com"]

[Event "Titled Tuesday Blitz May 23 Early 2023"]
[White "Dwilewicz, Katarzyna"]
[Black "Simonovic, Miroslav"]
[WhiteFideId "1148486"]
[BlackFideId "919152"]
[WhiteElo "2065"]
[BlackElo "2042"]
[Result "0-1"]
[Round "06"]
[TimeControl "180+2"]
[Date "2023.05.23"]
[WhiteClock "0:00:00"]
[BlackClock "0:00:16"]

1. e4 {[%clk 0:03:00]}  c5 {[%clk 0:03:00]} 2. Nc3 {[%clk 0:03:00]}  Nc6 {[%clk 0:03:00]} 3. g3 {[%clk 0:02:59]}  g6 {[%clk 0:03:00]} 4. Bg2 {[%clk 0:02:59]}  Bg7 {[%clk 0:03:01]} 5. Nge2 {[%clk 0:03:00]}  e5 {[%clk 0:03:01]} 6. O-O {[%clk 0:03:00]}  Nge7 {[%clk 0:03:01]} 7. d3 {[%clk 0:03:00]}  O-O {[%clk 0:03:02]} 8. Be3 {[%clk 0:03:00]}  d6 {[%clk 0:03:01]} 9. f4 {[%clk 0:03:00]}  Nd4 {[%clk 0:02:55]} 10. h3 {[%clk 0:02:52]}  f5 {[%clk 0:02:52]} 11. fxe5 {[%clk 0:02:41]}  dxe5 {[%clk 0:02:50]} 12. Nd5 {[%clk 0:02:39]}  Rb8 {[%clk 0:02:24]} 13. c3 {[%clk 0:02:37]}  Nxe2+ {[%clk 0:02:16]} 14. Qxe2 {[%clk 0:02:37]}  b6 {[%clk 0:02:16]} 15. Bg5 {[%clk 0:02:31]}  Rf7 {[%clk 0:02:04]} 16. Nxe7+ {[%clk 0:02:23]}  Rxe7 {[%clk 0:02:05]} 17. exf5 {[%clk 0:02:21]}  gxf5 {[%clk 0:02:03]} 18. Bxe7 {[%clk 0:02:07]}  Qxe7 {[%clk 0:02:04]} 19. Bd5+ {[%clk 0:02:07]}  Kh8 {[%clk 0:02:04]} 20. Qh5 {[%clk 0:02:01]}  Bd7 {[%clk 0:01:55]} 21. Rae1 {[%clk 0:02:00]}  Rf8 {[%clk 0:01:53]} 22. Qf3 {[%clk 0:01:55]}  h6 {[%clk 0:01:34]} 23. Kh2 {[%clk 0:01:55]}  Qg5 {[%clk 0:01:21]} 24. Re2 {[%clk 0:01:52]}  Be8 {[%clk 0:01:12]} 25. Qe3 {[%clk 0:01:45]}  f4 {[%clk 0:00:58]} 26. Qg1 {[%clk 0:01:32]}  Bh5 {[%clk 0:00:51]} 27. g4 {[%clk 0:01:23]}  Bg6 {[%clk 0:00:50]} 28. Rf3 {[%clk 0:01:17]}  Rd8 {[%clk 0:00:41]} 29. Be4 {[%clk 0:00:58]}  Bf7 {[%clk 0:00:40]} 30. a3 {[%clk 0:00:55]}  Be6 {[%clk 0:00:39]} 31. Qf2 {[%clk 0:00:50]}  Qe7 {[%clk 0:00:33]} 32. Qe1 {[%clk 0:00:38]}  Bf6 {[%clk 0:00:32]} 33. Bf5 {[%clk 0:00:32]}  Bh4 {[%clk 0:00:31]} 34. Qd1 {[%clk 0:00:27]}  Bxf5 {[%clk 0:00:30]} 35. gxf5 {[%clk 0:00:26]}  Bg3+ {[%clk 0:00:30]} 36. Kh1 {[%clk 0:00:19]}  Rf8 {[%clk 0:00:26]} 37. Rxg3 {[%clk 0:00:09]}  fxg3 {[%clk 0:00:26]} 38. Qg1 {[%clk 0:00:09]}  Qg5 {[%clk 0:00:17]} 39. Qe3 {[%clk 0:00:06]}  Rxf5 {[%clk 0:00:17]} 40. Qxg5 {[%clk 0:00:05]}  Rxg5 {[%clk 0:00:18]} 41. Kg2 {[%clk 0:00:05]}  h5 {[%clk 0:00:18]} 42. h4 {[%clk 0:00:05]}  Rg4 {[%clk 0:00:17]} 43. Rxe5 {[%clk 0:00:04]}  Rxh4 {[%clk 0:00:18]} 44. Kxg3 {[%clk 0:00:05]}  Rh1 {[%clk 0:00:18]} 45. Re7 {[%clk 0:00:04]}  Rb1 {[%clk 0:00:17]} 46. Re2 {[%clk 0:00:03]}  Rd1 {[%clk 0:00:16]} 47. Re3 {[%clk 0:00:02]}  Rd2 {[%clk 0:00:16]} 48. Re5 {[%clk 0:00:02]}  Rxd3+ {[%clk 0:00:16]} 49. Kf4 {[%clk 0:00:03]}  Rd2 {[%clk 0:00:17]} 50. Rxh5+ {[%clk 0:00:04]}  Kg7 {[%clk 0:00:16]} 51. b4 {[%clk 0:00:04]}  c4 {[%clk 0:00:14]} 52. Re5 {[%clk 0:00:03]}  Rd3 {[%clk 0:00:14]} 53. Re7+ {[%clk 0:00:02]}  Kf6 {[%clk 0:00:14]} 54. Rxa7 {[%clk 0:00:03]}  Rxc3 {[%clk 0:00:15]} 55. Rb7 {[%clk 0:00:03]}  Rxa3 {[%clk 0:00:13]} 56. Rxb6+ {[%clk 0:00:04]}  Ke7 {[%clk 0:00:14]} 57. Rc6 {[%clk 0:00:05]}  Rc3 {[%clk 0:00:15]} 58. Ke5 {[%clk 0:00:05]}  Rc1 {[%clk 0:00:15]} 59. Kd5 {[%clk 0:00:05]}  c3 {[%clk 0:00:15]} 60. b5 {[%clk 0:00:04]}  c2 {[%clk 0:00:16]} 61. Rc7+ {[%clk 0:00:02]}  Kd8 {[%clk 0:00:16]} 62. Rxc2 {[%clk 0:00:00]}  Rxc2 {[%clk 0:00:16]} 0-1


[Site "https://www.chess.com"]